Department Family,Entity,Date,Expense Type,Expense Area,Supplier,AP Amount
Department of Health,St. Helens&Knowsley Hospitals NHS Trust,31/01/2021,CompSwrPrch Additions,Balance Sheet,SYSTEM C HEALTHCARE LTD,"3,000,000.00"
Department of Health,St. Helens&Knowsley Hospitals NHS Trust,31/01/2021,Computer Hardware Purch,MMDA PROGRAMME COSTS - SHARED SERVICES,INSIGHT DIRECT (UK) LTD,"22,960.00"
Department of Health,St. Helens&Knowsley Hospitals NHS Trust,31/01/2021,Computer Hardware Purch,MMDA PROGRAMME COSTS - SHARED SERVICES,INSIGHT DIRECT (UK) LTD,"4,592.00"
Department of Health,St. Helens&Knowsley Hospitals NHS Trust,31/01/2021,Computer Hardware Purch,TRUST RECHARGES,HP INC UK LTD,"23,000.70"
Department of Health,St. Helens&Knowsley Hospitals NHS Trust,31/01/2021,Computer Hardware Purch,TRUST RECHARGES,HP INC UK LTD,"4,600.14"
Department of Health,St. Helens&Knowsley Hospitals NHS Trust,31/01/2021,Computer Hardware Purch,TRUST IT SYSTEMS,MULTITONE ELECTRONICS PLC,"28,642.60"
Department of Health,St. Helens&Knowsley Hospitals NHS Trust,31/01/2021,Computer Hardware Purch,TRUST RECHARGES,HP INC UK LTD,"37,873.00"
Department of Health,St. Helens&Knowsley Hospitals NHS Trust,31/01/2021,Computer Hardware Purch,TRUST RECHARGES,HP INC UK LTD,"7,574.60"
Department of Health,St. Helens&Knowsley Hospitals NHS Trust,31/01/2021,Computer Maintenance,MMDA PROGRAMME COSTS - SHARED SERVICES,DELL CORPORATION LTD,"419,453.91"
Department of Health,St. Helens&Knowsley Hospitals NHS Trust,31/01/2021,Computer Maintenance,MMDA PROGRAMME COSTS - SHARED SERVICES,DELL CORPORATION LTD,"83,890.78"
Department of Health,St. Helens&Knowsley Hospitals NHS Trust,31/01/2021,Computer Maintenance,DIGITAL SOLUTIONS,PCTI SOLUTIONS LTD,"51,000.00"
Department of Health,St. Helens&Knowsley Hospitals NHS Trust,31/01/2021,Computer Maintenance,DIGITAL SOLUTIONS,PCTI SOLUTIONS LTD,"10,200.00"
Department of Health,St. Helens&Knowsley Hospitals NHS Trust,31/01/2021,Computer Maintenance,MMDA PROGRAMME COSTS - SHARED SERVICES,GE MEDICAL SYSTEMS LTD,"35,498.95"
Department of Health,St. Helens&Knowsley Hospitals NHS Trust,31/01/2021,Computer Maintenance,MMDA PROGRAMME COSTS - SHARED SERVICES,GE MEDICAL SYSTEMS LTD,"7,099.79"
Department of Health,St. Helens&Knowsley Hospitals NHS Trust,31/01/2021,Computer Maintenance,NURSING ADMINISTRATION,DATIX LTD,"37,464.60"
Department of Health,St. Helens&Knowsley Hospitals NHS Trust,31/01/2021,Continence Products,COMMUNITY CONTINENCE SERVICE,ESSITY UK LTD,"43,018.43"
Department of Health,St. Helens&Knowsley Hospitals NHS Trust,31/01/2021,Equip Maint Contracts,RADIOGRAPHY WHISTON,CAM CRIS MANAGED S,"31,836.78"
Department of Health,St. Helens&Knowsley Hospitals NHS Trust,31/01/2021,Independent Sector,VARIOUS,FAIRFIELD INDEPENDENT HOSPITAL,"50,000.00"
Department of Health,St. Helens&Knowsley Hospitals NHS Trust,31/01/2021,Independent Sector,VARIOUS,FAIRFIELD INDEPENDENT HOSPITAL,"400,000.00"
Department of Health,St. Helens&Knowsley Hospitals NHS Trust,31/01/2021,Laboratory Chemicals,HAEM + BLOOD TRANSFUSION,SYSMEX UK LTD,"39,858.71"
Department of Health,St. Helens&Knowsley Hospitals NHS Trust,31/01/2021,Laboratory Chemicals,HAEM + BLOOD TRANSFUSION,SYSMEX UK LTD,"7,971.74"
Department of Health,St. Helens&Knowsley Hospitals NHS Trust,31/01/2021,Laboratory Chemicals,HAEM + BLOOD TRANSFUSION,HAEMONETICS LTD,"33,532.75"
Department of Health,St. Helens&Knowsley Hospitals NHS Trust,31/01/2021,Laboratory Chemicals,HAEM + BLOOD TRANSFUSION,HAEMONETICS LTD,"6,706.55"
Department of Health,St. Helens&Knowsley Hospitals NHS Trust,31/01/2021,Laboratory Reagents,HISTOPATHOLOGY/MORTUARY,ROCHE DIAGNOSTICS LTD,"93,960.75"
Department of Health,St. Helens&Knowsley Hospitals NHS Trust,31/01/2021,Laboratory Reagents,HISTOPATHOLOGY/MORTUARY,ROCHE DIAGNOSTICS LTD,"18,792.15"
Department of Health,St. Helens&Knowsley Hospitals NHS Trust,31/01/2021,Laboratory Test Kits,POINT OF CARE,CHRYSTAL CONSULTING LTD,"6,959.27"
Department of Health,St. Helens&Knowsley Hospitals NHS Trust,31/01/2021,Laboratory Test Kits,A + E NURSING WHISTON,CHRYSTAL CONSULTING LTD,"35,989.82"
Department of Health,St. Helens&Knowsley Hospitals NHS Trust,31/01/2021,Laboratory Test Kits,A + E NURSING WHISTON,CHRYSTAL CONSULTING LTD,"7,197.96"
Department of Health,St. Helens&Knowsley Hospitals NHS Trust,31/01/2021,Lease Rents,PFI DESIGN + CONSTRUCTION,EDDISONS COMMERCIAL PROPERTY MANAGEMENT LTD,"62,400.00"
Department of Health,St. Helens&Knowsley Hospitals NHS Trust,31/01/2021,Lease Rents,MMDA PROGRAMME COSTS - SHARED SERVICES,OAKMERE ESTATES (LIVERPOOL) LTD,"34,500.00"
Department of Health,St. Helens&Knowsley Hospitals NHS Trust,31/01/2021,Lease Rents,REGIONAL VACCINATION CENTRE,ST HELENS RFC LTD,"40,130.87"
Department of Health,St. Helens&Knowsley Hospitals NHS Trust,31/01/2021,Lease Rents,REGIONAL VACCINATION CENTRE,ST HELENS RFC LTD,"16,000.00"
Department of Health,St. Helens&Knowsley Hospitals NHS Trust,31/01/2021,Lease Rents,REGIONAL VACCINATION CENTRE,ST HELENS RFC LTD,"11,226.18"
Department of Health,St. Helens&Knowsley Hospitals NHS Trust,31/01/2021,Med & Surg Equip General,GEN MED ENDOSCOPY H2,AAH PHARMACEUTICALS LTD,151.16
Department of Health,St. Helens&Knowsley Hospitals NHS Trust,31/01/2021,Med & Surg Equip General,GEN MED ENDOSCOPY H2,AAH PHARMACEUTICALS LTD,755.82
Department of Health,St. Helens&Knowsley Hospitals NHS Trust,31/01/2021,Med & Surg Equip General,THEATRES BURNS + PLASTICS,AAH PHARMACEUTICALS LTD,47.85
Department of Health,St. Helens&Knowsley Hospitals NHS Trust,31/01/2021,Med & Surg Equip General,THEATRES BURNS + PLASTICS,AAH PHARMACEUTICALS LTD,239.25
Department of Health,St. Helens&Knowsley Hospitals NHS Trust,31/01/2021,Med & Surg Equip General,THEATRES MAIN ST HELEN'S,AAH PHARMACEUTICALS LTD,32.41
Department of Health,St. Helens&Knowsley Hospitals NHS Trust,31/01/2021,Med & Surg Equip General,THEATRES MAIN ST HELEN'S,AAH PHARMACEUTICALS LTD,162.03
Department of Health,St. Helens&Knowsley Hospitals NHS Trust,31/01/2021,Med & Surg Equip General,THEATRES MAIN ST HELEN'S,AAH PHARMACEUTICALS LTD,39.15
Department of Health,St. Helens&Knowsley Hospitals NHS Trust,31/01/2021,Med & Surg Equip General,THEATRES MAIN ST HELEN'S,AAH PHARMACEUTICALS LTD,195.75
Department of Health,St. Helens&Knowsley Hospitals NHS Trust,31/01/2021,Med & Surg Equip General,WARD 4F PAEDIATRICS,AAH PHARMACEUTICALS LTD,22
Department of Health,St. Helens&Knowsley Hospitals NHS Trust,31/01/2021,Med & Surg Equip General,WARD 4F PAEDIATRICS,AAH PHARMACEUTICALS LTD,110
Department of Health,St. Helens&Knowsley Hospitals NHS Trust,31/01/2021,Med Equip Additions,Balance Sheet,OMNICELL LTD,"32,386.10"
Department of Health,St. Helens&Knowsley Hospitals NHS Trust,31/01/2021,Med Equip Additions,Balance Sheet,OMNICELL LTD,"32,386.10"
Department of Health,St. Helens&Knowsley Hospitals NHS Trust,31/01/2021,Med Equip Additions,Balance Sheet,OMNICELL LTD,"12,954.44"
Department of Health,St. Helens&Knowsley Hospitals NHS Trust,31/01/2021,Med Equip Additions,Balance Sheet,MICROTECH,"42,247.27"
Department of Health,St. Helens&Knowsley Hospitals NHS Trust,31/01/2021,Med Equip Additions,Balance Sheet,HAEMONETICS LTD,"20,847.00"
Department of Health,St. Helens&Knowsley Hospitals NHS Trust,31/01/2021,Med Equip Additions,Balance Sheet,HAEMONETICS LTD,"4,169.40"
Department of Health,St. Helens&Knowsley Hospitals NHS Trust,31/01/2021,Med Equip Additions,Balance Sheet,FRESENIUS MEDICAL CARE UK LTD,"82,500.00"
Department of Health,St. Helens&Knowsley Hospitals NHS Trust,31/01/2021,Med Equip Additions,Balance Sheet,FRESENIUS MEDICAL CARE UK LTD,"16,500.00"
Department of Health,St. Helens&Knowsley Hospitals NHS Trust,31/01/2021,Miscellaneous Expenditure,BEVAN COURT FM,NEW HOSPITALS (ST HELENS & KNOWSLEY) LTD,"32,027.50"
Department of Health,St. Helens&Knowsley Hospitals NHS Trust,31/01/2021,Miscellaneous Expenditure,PFI ENABLING WORKS,MEDIREST,"120,000.00"
Department of Health,St. Helens&Knowsley Hospitals NHS Trust,31/01/2021,Miscellaneous Expenditure,PFI ENABLING WORKS,NEW HOSPITALS (ST HELENS & KNOWSLEY) LTD,"1,211,555.88"
Department of Health,St. Helens&Knowsley Hospitals NHS Trust,31/01/2021,Miscellaneous Expenditure,BEVAN COURT FM,NEW HOSPITALS (ST HELENS & KNOWSLEY) LTD,"71,624.17"
Department of Health,St. Helens&Knowsley Hospitals NHS Trust,31/01/2021,Miscellaneous Expenditure,PFI ENABLING WORKS,NEW HOSPITALS (ST HELENS & KNOWSLEY) LTD,"15,577,452.18"
Department of Health,St. Helens&Knowsley Hospitals NHS Trust,31/01/2021,Miscellaneous Expenditure,PFI ENABLING WORKS,NEW HOSPITALS (ST HELENS & KNOWSLEY) LTD,"1,218,895.75"
Department of Health,St. Helens&Knowsley Hospitals NHS Trust,31/01/2021,Mobile Phones,A + E NURSING WHISTON,VODAFONE LTD,18
Department of Health,St. Helens&Knowsley Hospitals NHS Trust,31/01/2021,Mobile Phones,A + E NURSING WHISTON,VODAFONE LTD,90
Department of Health,St. Helens&Knowsley Hospitals NHS Trust,31/01/2021,Mobile Phones,ACUTE KIDNEY INJURY SERVICE,VODAFONE LTD,6
Department of Health,St. Helens&Knowsley Hospitals NHS Trust,31/01/2021,Mobile Phones,ACUTE KIDNEY INJURY SERVICE,VODAFONE LTD,30
Department of Health,St. Helens&Knowsley Hospitals NHS Trust,31/01/2021,Mobile Phones,ACUTE MEDICAL UNIT,VODAFONE LTD,15.29
Department of Health,St. Helens&Knowsley Hospitals NHS Trust,31/01/2021,Mobile Phones,ACUTE MEDICAL UNIT,VODAFONE LTD,76.45
Department of Health,St. Helens&Knowsley Hospitals NHS Trust,31/01/2021,Mobile Phones,AMU NURSE SPECIALISTS,VODAFONE LTD,42.3
Department of Health,St. Helens&Knowsley Hospitals NHS Trust,31/01/2021,Mobile Phones,AMU NURSE SPECIALISTS,VODAFONE LTD,211.5
Department of Health,St. Helens&Knowsley Hospitals NHS Trust,31/01/2021,Mobile Phones,B + P DRESSINGS CLINIC,VODAFONE LTD,6.18
Department of Health,St. Helens&Knowsley Hospitals NHS Trust,31/01/2021,Mobile Phones,B + P DRESSINGS CLINIC,VODAFONE LTD,30.91
Department of Health,St. Helens&Knowsley Hospitals NHS Trust,31/01/2021,Mobile Phones,B + P MEDICAL PHOTOGRAPHY,VODAFONE LTD,12
Department of Health,St. Helens&Knowsley Hospitals NHS Trust,31/01/2021,Mobile Phones,B + P MEDICAL PHOTOGRAPHY,VODAFONE LTD,60
Department of Health,St. Helens&Knowsley Hospitals NHS Trust,31/01/2021,Mobile Phones,B + P MEDICAL STAFF,VODAFONE LTD,18
Department of Health,St. Helens&Knowsley Hospitals NHS Trust,31/01/2021,Mobile Phones,B + P MEDICAL STAFF,VODAFONE LTD,90
Department of Health,St. Helens&Knowsley Hospitals NHS Trust,31/01/2021,Mobile Phones,BED MANAGEMENT,VODAFONE LTD,31.5
Department of Health,St. Helens&Knowsley Hospitals NHS Trust,31/01/2021,Mobile Phones,BED MANAGEMENT,VODAFONE LTD,157.5
Department of Health,St. Helens&Knowsley Hospitals NHS Trust,31/01/2021,Mobile Phones,BEVAN COURT 1,VODAFONE LTD,16.48
Department of Health,St. Helens&Knowsley Hospitals NHS Trust,31/01/2021,Mobile Phones,BEVAN COURT 1,VODAFONE LTD,82.42
Department of Health,St. Helens&Knowsley Hospitals NHS Trust,31/01/2021,Mobile Phones,BEVAN COURT 2,VODAFONE LTD,4.58
Department of Health,St. Helens&Knowsley Hospitals NHS Trust,31/01/2021,Mobile Phones,BEVAN COURT 2,VODAFONE LTD,22.9
Department of Health,St. Helens&Knowsley Hospitals NHS Trust,31/01/2021,Mobile Phones,BUSINESS RELATIONSHIPS,VODAFONE LTD,6
Department of Health,St. Helens&Knowsley Hospitals NHS Trust,31/01/2021,Mobile Phones,BUSINESS RELATIONSHIPS,VODAFONE LTD,30
Department of Health,St. Helens&Knowsley Hospitals NHS Trust,31/01/2021,Mobile Phones,C.O.P.D SERVICE (KPCT),VODAFONE LTD,1.5
Department of Health,St. Helens&Knowsley Hospitals NHS Trust,31/01/2021,Mobile Phones,C.O.P.D SERVICE (KPCT),VODAFONE LTD,7.5
Department of Health,St. Helens&Knowsley Hospitals NHS Trust,31/01/2021,Mobile Phones,C.O.P.D SERVICE (STHPCT),VODAFONE LTD,70.02
Department of Health,St. Helens&Knowsley Hospitals NHS Trust,31/01/2021,Mobile Phones,C.O.P.D SERVICE (STHPCT),VODAFONE LTD,350.1
Department of Health,St. Helens&Knowsley Hospitals NHS Trust,31/01/2021,Mobile Phones,CANCER CORE STAFF AND NON-PAY,VODAFONE LTD,6
Department of Health,St. Helens&Knowsley Hospitals NHS Trust,31/01/2021,Mobile Phones,CANCER CORE STAFF AND NON-PAY,VODAFONE LTD,30
Department of Health,St. Helens&Knowsley Hospitals NHS Trust,31/01/2021,Mobile Phones,CANCER NURSE SPEC MCG,VODAFONE LTD,12.06
Department of Health,St. Helens&Knowsley Hospitals NHS Trust,31/01/2021,Mobile Phones,CANCER NURSE SPEC MCG,VODAFONE LTD,60.3
Department of Health,St. Helens&Knowsley Hospitals NHS Trust,31/01/2021,Mobile Phones,CANCER NURSE SPEC SCG,VODAFONE LTD,11.7
Department of Health,St. Helens&Knowsley Hospitals NHS Trust,31/01/2021,Mobile Phones,CANCER NURSE SPEC SCG,VODAFONE LTD,58.5
Department of Health,St. Helens&Knowsley Hospitals NHS Trust,31/01/2021,Mobile Phones,CANCER SERVICES - ADMIN,VODAFONE LTD,6
Department of Health,St. Helens&Knowsley Hospitals NHS Trust,31/01/2021,Mobile Phones,CANCER SERVICES - ADMIN,VODAFONE LTD,30
Department of Health,St. Helens&Knowsley Hospitals NHS Trust,31/01/2021,Mobile Phones,CANCER SVS CO-ORDINATION,VODAFONE LTD,39
Department of Health,St. Helens&Knowsley Hospitals NHS Trust,31/01/2021,Mobile Phones,CANCER SVS CO-ORDINATION,VODAFONE LTD,195.01
Department of Health,St. Helens&Knowsley Hospitals NHS Trust,31/01/2021,Mobile Phones,CARDIO-RESPIRATORY (ECG),VODAFONE LTD,7.5
Department of Health,St. Helens&Knowsley Hospitals NHS Trust,31/01/2021,Mobile Phones,CARDIO-RESPIRATORY (ECG),VODAFONE LTD,37.5
Department of Health,St. Helens&Knowsley Hospitals NHS Trust,31/01/2021,Mobile Phones,CARDIOLOGY NURSING,VODAFONE LTD,15
Department of Health,St. Helens&Knowsley Hospitals NHS Trust,31/01/2021,Mobile Phones,CARDIOLOGY NURSING,VODAFONE LTD,75
Department of Health,St. Helens&Knowsley Hospitals NHS Trust,31/01/2021,Mobile Phones,CARDIOLOGY SNR MEDICAL,VODAFONE LTD,12
Department of Health,St. Helens&Knowsley Hospitals NHS Trust,31/01/2021,Mobile Phones,CARDIOLOGY SNR MEDICAL,VODAFONE LTD,60
Department of Health,St. Helens&Knowsley Hospitals NHS Trust,31/01/2021,Mobile Phones,CARE OF ELDERLY MED STAFF,VODAFONE LTD,137.31
Department of Health,St. Helens&Knowsley Hospitals NHS Trust,31/01/2021,Mobile Phones,CARE OF ELDERLY MED STAFF,VODAFONE LTD,686.53
Department of Health,St. Helens&Knowsley Hospitals NHS Trust,31/01/2021,Mobile Phones,CHAIRMAN'S OFFICE,VODAFONE LTD,42
Department of Health,St. Helens&Knowsley Hospitals NHS Trust,31/01/2021,Mobile Phones,CHAIRMAN'S OFFICE,VODAFONE LTD,210
Department of Health,St. Helens&Knowsley Hospitals NHS Trust,31/01/2021,Mobile Phones,CHIEF EXECUTIVE'S OFFICE,VODAFONE LTD,76.03
Department of Health,St. Helens&Knowsley Hospitals NHS Trust,31/01/2021,Mobile Phones,CHIEF EXECUTIVE'S OFFICE,VODAFONE LTD,380.14
Department of Health,St. Helens&Knowsley Hospitals NHS Trust,31/01/2021,Mobile Phones,CLINICAL GOVERNANCE TEAM,VODAFONE LTD,4.5
Department of Health,St. Helens&Knowsley Hospitals NHS Trust,31/01/2021,Mobile Phones,CLINICAL GOVERNANCE TEAM,VODAFONE LTD,22.5
Department of Health,St. Helens&Knowsley Hospitals NHS Trust,31/01/2021,Mobile Phones,CLINICAL PSYCHOLOGY,VODAFONE LTD,7.5
Department of Health,St. Helens&Knowsley Hospitals NHS Trust,31/01/2021,Mobile Phones,CLINICAL PSYCHOLOGY,VODAFONE LTD,37.5
Department of Health,St. Helens&Knowsley Hospitals NHS Trust,31/01/2021,Mobile Phones,CLINICAL SUPPORT DIV MGMT,VODAFONE LTD,13.4
Department of Health,St. Helens&Knowsley Hospitals NHS Trust,31/01/2021,Mobile Phones,CLINICAL SUPPORT DIV MGMT,VODAFONE LTD,67
Department of Health,St. Helens&Knowsley Hospitals NHS Trust,31/01/2021,Mobile Phones,COE NURSE SPECIALISTS,VODAFONE LTD,19.51
Department of Health,St. Helens&Knowsley Hospitals NHS Trust,31/01/2021,Mobile Phones,COE NURSE SPECIALISTS,VODAFONE LTD,97.56
Department of Health,St. Helens&Knowsley Hospitals NHS Trust,31/01/2021,Mobile Phones,COLD DECONTAMINATION,VODAFONE LTD,6
Department of Health,St. Helens&Knowsley Hospitals NHS Trust,31/01/2021,Mobile Phones,COLD DECONTAMINATION,VODAFONE LTD,30
Department of Health,St. Helens&Knowsley Hospitals NHS Trust,31/01/2021,Mobile Phones,COLD DECONTAMINATION WHISTON,VODAFONE LTD,13.5
Department of Health,St. Helens&Knowsley Hospitals NHS Trust,31/01/2021,Mobile Phones,COLD DECONTAMINATION WHISTON,VODAFONE LTD,67.5
Department of Health,St. Helens&Knowsley Hospitals NHS Trust,31/01/2021,Mobile Phones,COMMUNICATIONS,VODAFONE LTD,24
Department of Health,St. Helens&Knowsley Hospitals NHS Trust,31/01/2021,Mobile Phones,COMMUNICATIONS,VODAFONE LTD,120
Department of Health,St. Helens&Knowsley Hospitals NHS Trust,31/01/2021,Mobile Phones,COMMUNITY CARDIAC TEAM,VODAFONE LTD,59.4
Department of Health,St. Helens&Knowsley Hospitals NHS Trust,31/01/2021,Mobile Phones,COMMUNITY CARDIAC TEAM,VODAFONE LTD,297
Department of Health,St. Helens&Knowsley Hospitals NHS Trust,31/01/2021,Mobile Phones,COMMUNITY CONTINENCE SERVICE,VODAFONE LTD,24
Department of Health,St. Helens&Knowsley Hospitals NHS Trust,31/01/2021,Mobile Phones,COMMUNITY CONTINENCE SERVICE,VODAFONE LTD,120
Department of Health,St. Helens&Knowsley Hospitals NHS Trust,31/01/2021,Mobile Phones,COMMUNITY FRAILTY SERVICE,VODAFONE LTD,65.59
Department of Health,St. Helens&Knowsley Hospitals NHS Trust,31/01/2021,Mobile Phones,COMMUNITY FRAILTY SERVICE,VODAFONE LTD,327.94
Department of Health,St. Helens&Knowsley Hospitals NHS Trust,31/01/2021,Mobile Phones,COMMUNITY MIDWIFERY,VODAFONE LTD,334.5
Department of Health,St. Helens&Knowsley Hospitals NHS Trust,31/01/2021,Mobile Phones,COMMUNITY MIDWIFERY,VODAFONE LTD,"1,674.02"
Department of Health,St. Helens&Knowsley Hospitals NHS Trust,31/01/2021,Mobile Phones,COMMUNITY NURSING MANAGEMENT,VODAFONE LTD,12
Department of Health,St. Helens&Knowsley Hospitals NHS Trust,31/01/2021,Mobile Phones,COMMUNITY NURSING MANAGEMENT,VODAFONE LTD,60
Department of Health,St. Helens&Knowsley Hospitals NHS Trust,31/01/2021,Mobile Phones,COMMUNITY PAEDIATRICS,VODAFONE LTD,75.6
Department of Health,St. Helens&Knowsley Hospitals NHS Trust,31/01/2021,Mobile Phones,COMMUNITY PAEDIATRICS,VODAFONE LTD,378
Department of Health,St. Helens&Knowsley Hospitals NHS Trust,31/01/2021,Mobile Phones,COMMUNITY SERVICES MANAGEMENT,VODAFONE LTD,12
Department of Health,St. Helens&Knowsley Hospitals NHS Trust,31/01/2021,Mobile Phones,COMMUNITY SERVICES MANAGEMENT,VODAFONE LTD,60
Department of Health,St. Helens&Knowsley Hospitals NHS Trust,31/01/2021,Mobile Phones,COMMUNITY SLA'S,VODAFONE LTD,42.02
Department of Health,St. Helens&Knowsley Hospitals NHS Trust,31/01/2021,Mobile Phones,COMMUNITY SLA'S,VODAFONE LTD,210.12
Department of Health,St. Helens&Knowsley Hospitals NHS Trust,31/01/2021,Mobile Phones,COMPLAINTS,VODAFONE LTD,6
Department of Health,St. Helens&Knowsley Hospitals NHS Trust,31/01/2021,Mobile Phones,COMPLAINTS,VODAFONE LTD,30
Department of Health,St. Helens&Knowsley Hospitals NHS Trust,31/01/2021,Mobile Phones,COVID,VODAFONE LTD,22.2
Department of Health,St. Helens&Knowsley Hospitals NHS Trust,31/01/2021,Mobile Phones,COVID,VODAFONE LTD,111
Department of Health,St. Helens&Knowsley Hospitals NHS Trust,31/01/2021,Mobile Phones,DIABETES NURSING,VODAFONE LTD,12
Department of Health,St. Helens&Knowsley Hospitals NHS Trust,31/01/2021,Mobile Phones,DIABETES NURSING,VODAFONE LTD,60
Department of Health,St. Helens&Knowsley Hospitals NHS Trust,31/01/2021,Mobile Phones,DIABETES SNR MEDICAL,VODAFONE LTD,12
Department of Health,St. Helens&Knowsley Hospitals NHS Trust,31/01/2021,Mobile Phones,DIABETES SNR MEDICAL,VODAFONE LTD,60
Department of Health,St. Helens&Knowsley Hospitals NHS Trust,31/01/2021,Mobile Phones,DIABETES STP,VODAFONE LTD,72
Department of Health,St. Helens&Knowsley Hospitals NHS Trust,31/01/2021,Mobile Phones,DIABETES STP,VODAFONE LTD,360
Department of Health,St. Helens&Knowsley Hospitals NHS Trust,31/01/2021,Mobile Phones,DN CENTRAL,VODAFONE LTD,16.13
Department of Health,St. Helens&Knowsley Hospitals NHS Trust,31/01/2021,Mobile Phones,DN CENTRAL,VODAFONE LTD,80.65
Department of Health,St. Helens&Knowsley Hospitals NHS Trust,31/01/2021,Mobile Phones,DN HAYDOCK AND NEWTON,VODAFONE LTD,19.81
Department of Health,St. Helens&Knowsley Hospitals NHS Trust,31/01/2021,Mobile Phones,DN HAYDOCK AND NEWTON,VODAFONE LTD,99.05
Department of Health,St. Helens&Knowsley Hospitals NHS Trust,31/01/2021,Mobile Phones,DN SOUTH,VODAFONE LTD,38.08
Department of Health,St. Helens&Knowsley Hospitals NHS Trust,31/01/2021,Mobile Phones,DN SOUTH,VODAFONE LTD,190.42
Department of Health,St. Helens&Knowsley Hospitals NHS Trust,31/01/2021,Mobile Phones,DN St Helens OOH,VODAFONE LTD,4.58
Department of Health,St. Helens&Knowsley Hospitals NHS Trust,31/01/2021,Mobile Phones,DN St Helens OOH,VODAFONE LTD,22.92
Department of Health,St. Helens&Knowsley Hospitals NHS Trust,31/01/2021,Mobile Phones,DUFFY SUITE INTERMEDIATE CARE UNIT,VODAFONE LTD,7.33
Department of Health,St. Helens&Knowsley Hospitals NHS Trust,31/01/2021,Mobile Phones,DUFFY SUITE INTERMEDIATE CARE UNIT,VODAFONE LTD,36.67
Department of Health,St. Helens&Knowsley Hospitals NHS Trust,31/01/2021,Mobile Phones,EAST MIDLANDS HEE,VODAFONE LTD,21.6
Department of Health,St. Helens&Knowsley Hospitals NHS Trust,31/01/2021,Mobile Phones,EAST MIDLANDS HEE,VODAFONE LTD,108
Department of Health,St. Helens&Knowsley Hospitals NHS Trust,31/01/2021,Mobile Phones,EMERGENCY PLANNING,VODAFONE LTD,6.32
Department of Health,St. Helens&Knowsley Hospitals NHS Trust,31/01/2021,Mobile Phones,EMERGENCY PLANNING,VODAFONE LTD,31.59
Department of Health,St. Helens&Knowsley Hospitals NHS Trust,31/01/2021,Mobile Phones,ENT MEDICAL STAFF,VODAFONE LTD,6
Department of Health,St. Helens&Knowsley Hospitals NHS Trust,31/01/2021,Mobile Phones,ENT MEDICAL STAFF,VODAFONE LTD,30
Department of Health,St. Helens&Knowsley Hospitals NHS Trust,31/01/2021,Mobile Phones,EPMA,VODAFONE LTD,18
Department of Health,St. Helens&Knowsley Hospitals NHS Trust,31/01/2021,Mobile Phones,EPMA,VODAFONE LTD,90
Department of Health,St. Helens&Knowsley Hospitals NHS Trust,31/01/2021,Mobile Phones,ESTATE SURVEY SECTION,VODAFONE LTD,6
Department of Health,St. Helens&Knowsley Hospitals NHS Trust,31/01/2021,Mobile Phones,ESTATE SURVEY SECTION,VODAFONE LTD,30
Department of Health,St. Helens&Knowsley Hospitals NHS Trust,31/01/2021,Mobile Phones,EXECUTIVE PAYROLL,VODAFONE LTD,43.53
Department of Health,St. Helens&Knowsley Hospitals NHS Trust,31/01/2021,Mobile Phones,EXECUTIVE PAYROLL,VODAFONE LTD,217.65
Department of Health,St. Helens&Knowsley Hospitals NHS Trust,31/01/2021,Mobile Phones,FACILITIES MANAGEMENT,VODAFONE LTD,43.56
Department of Health,St. Helens&Knowsley Hospitals NHS Trust,31/01/2021,Mobile Phones,FACILITIES MANAGEMENT,VODAFONE LTD,217.8
Department of Health,St. Helens&Knowsley Hospitals NHS Trust,31/01/2021,Mobile Phones,FALLS NURSE,VODAFONE LTD,8.07
Department of Health,St. Helens&Knowsley Hospitals NHS Trust,31/01/2021,Mobile Phones,FALLS NURSE,VODAFONE LTD,40.35
Department of Health,St. Helens&Knowsley Hospitals NHS Trust,31/01/2021,Mobile Phones,FINANCE DIRECTORATE HQ,VODAFONE LTD,80.4
Department of Health,St. Helens&Knowsley Hospitals NHS Trust,31/01/2021,Mobile Phones,FINANCE DIRECTORATE HQ,VODAFONE LTD,402
Department of Health,St. Helens&Knowsley Hospitals NHS Trust,31/01/2021,Mobile Phones,GASTRO UPPER GI FUND,VODAFONE LTD,6
Department of Health,St. Helens&Knowsley Hospitals NHS Trust,31/01/2021,Mobile Phones,GASTRO UPPER GI FUND,VODAFONE LTD,30
Department of Health,St. Helens&Knowsley Hospitals NHS Trust,31/01/2021,Mobile Phones,GASTROLOGY NURSING,VODAFONE LTD,48
Department of Health,St. Helens&Knowsley Hospitals NHS Trust,31/01/2021,Mobile Phones,GASTROLOGY NURSING,VODAFONE LTD,240
Department of Health,St. Helens&Knowsley Hospitals NHS Trust,31/01/2021,Mobile Phones,GASTROLOGY SNR MEDICAL,VODAFONE LTD,42
Department of Health,St. Helens&Knowsley Hospitals NHS Trust,31/01/2021,Mobile Phones,GASTROLOGY SNR MEDICAL,VODAFONE LTD,210
Department of Health,St. Helens&Knowsley Hospitals NHS Trust,31/01/2021,Mobile Phones,GEN MED ENDOSCOPY H2,VODAFONE LTD,6
Department of Health,St. Helens&Knowsley Hospitals NHS Trust,31/01/2021,Mobile Phones,GEN MED ENDOSCOPY H2,VODAFONE LTD,30
Department of Health,St. Helens&Knowsley Hospitals NHS Trust,31/01/2021,Mobile Phones,GEN MEDICINE MEDICAL STF,VODAFONE LTD,25.5
Department of Health,St. Helens&Knowsley Hospitals NHS Trust,31/01/2021,Mobile Phones,GEN MEDICINE MEDICAL STF,VODAFONE LTD,127.5
Department of Health,St. Helens&Knowsley Hospitals NHS Trust,31/01/2021,Mobile Phones,GENERAL SURGERY MEDICAL,VODAFONE LTD,25.5
Department of Health,St. Helens&Knowsley Hospitals NHS Trust,31/01/2021,Mobile Phones,GENERAL SURGERY MEDICAL,VODAFONE LTD,127.5
Department of Health,St. Helens&Knowsley Hospitals NHS Trust,31/01/2021,Mobile Phones,HAEM + BLOOD TRANSFUSION,VODAFONE LTD,24
Department of Health,St. Helens&Knowsley Hospitals NHS Trust,31/01/2021,Mobile Phones,HAEM + BLOOD TRANSFUSION,VODAFONE LTD,120
Department of Health,St. Helens&Knowsley Hospitals NHS Trust,31/01/2021,Mobile Phones,HAEMATOLOGY MEDICAL,VODAFONE LTD,32.29
Department of Health,St. Helens&Knowsley Hospitals NHS Trust,31/01/2021,Mobile Phones,HAEMATOLOGY MEDICAL,VODAFONE LTD,161.45
Department of Health,St. Helens&Knowsley Hospitals NHS Trust,31/01/2021,Mobile Phones,HISTOPATHOLOGY/MORTUARY,VODAFONE LTD,3.06
Department of Health,St. Helens&Knowsley Hospitals NHS Trust,31/01/2021,Mobile Phones,HISTOPATHOLOGY/MORTUARY,VODAFONE LTD,15.3
Department of Health,St. Helens&Knowsley Hospitals NHS Trust,31/01/2021,Mobile Phones,HOSPITAL DISCHARGE TEAM,VODAFONE LTD,12
Department of Health,St. Helens&Knowsley Hospitals NHS Trust,31/01/2021,Mobile Phones,HOSPITAL DISCHARGE TEAM,VODAFONE LTD,60
Department of Health,St. Helens&Knowsley Hospitals NHS Trust,31/01/2021,Mobile Phones,HSDU WHISTON,VODAFONE LTD,6.12
Department of Health,St. Helens&Knowsley Hospitals NHS Trust,31/01/2021,Mobile Phones,HSDU WHISTON,VODAFONE LTD,30.61
Department of Health,St. Helens&Knowsley Hospitals NHS Trust,31/01/2021,Mobile Phones,HUMAN RESOURCES - CORE HR,VODAFONE LTD,12
Department of Health,St. Helens&Knowsley Hospitals NHS Trust,31/01/2021,Mobile Phones,HUMAN RESOURCES - CORE HR,VODAFONE LTD,60
Department of Health,St. Helens&Knowsley Hospitals NHS Trust,31/01/2021,Mobile Phones,HUMAN RESOURCES - RESOURCING,VODAFONE LTD,255.78
Department of Health,St. Helens&Knowsley Hospitals NHS Trust,31/01/2021,Mobile Phones,HUMAN RESOURCES - RESOURCING,VODAFONE LTD,"1,278.91"
Department of Health,St. Helens&Knowsley Hospitals NHS Trust,31/01/2021,Mobile Phones,ICU MEDICAL STAFF WHISTON,VODAFONE LTD,144.17
Department of Health,St. Helens&Knowsley Hospitals NHS Trust,31/01/2021,Mobile Phones,ICU MEDICAL STAFF WHISTON,VODAFONE LTD,720.84
Department of Health,St. Helens&Knowsley Hospitals NHS Trust,31/01/2021,Mobile Phones,ICU NURSING WHISTON,VODAFONE LTD,1.5
Department of Health,St. Helens&Knowsley Hospitals NHS Trust,31/01/2021,Mobile Phones,ICU NURSING WHISTON,VODAFONE LTD,7.5
Department of Health,St. Helens&Knowsley Hospitals NHS Trust,31/01/2021,Mobile Phones,INFANT FEEDING TEAM,VODAFONE LTD,27.06
Department of Health,St. Helens&Knowsley Hospitals NHS Trust,31/01/2021,Mobile Phones,INFANT FEEDING TEAM,VODAFONE LTD,135.3
Department of Health,St. Helens&Knowsley Hospitals NHS Trust,31/01/2021,Mobile Phones,INFECTION CONTROL,VODAFONE LTD,13.96
Department of Health,St. Helens&Knowsley Hospitals NHS Trust,31/01/2021,Mobile Phones,INFECTION CONTROL,VODAFONE LTD,69.8
Department of Health,St. Helens&Knowsley Hospitals NHS Trust,31/01/2021,Mobile Phones,INFORMATION DEPARTMENT,VODAFONE LTD,31.2
Department of Health,St. Helens&Knowsley Hospitals NHS Trust,31/01/2021,Mobile Phones,INFORMATION DEPARTMENT,VODAFONE LTD,156
Department of Health,St. Helens&Knowsley Hospitals NHS Trust,31/01/2021,Mobile Phones,IV THERAPY ST HELENS,VODAFONE LTD,36.18
Department of Health,St. Helens&Knowsley Hospitals NHS Trust,31/01/2021,Mobile Phones,IV THERAPY ST HELENS,VODAFONE LTD,180.9
Department of Health,St. Helens&Knowsley Hospitals NHS Trust,31/01/2021,Mobile Phones,LEGAL SERVICES,VODAFONE LTD,6
Department of Health,St. Helens&Knowsley Hospitals NHS Trust,31/01/2021,Mobile Phones,LEGAL SERVICES,VODAFONE LTD,30
Department of Health,St. Helens&Knowsley Hospitals NHS Trust,31/01/2021,Mobile Phones,LIBRARY SERVICES,VODAFONE LTD,6
Department of Health,St. Helens&Knowsley Hospitals NHS Trust,31/01/2021,Mobile Phones,LIBRARY SERVICES,VODAFONE LTD,30
Department of Health,St. Helens&Knowsley Hospitals NHS Trust,31/01/2021,Mobile Phones,MARSHALLS CROSS MEDICAL CENTRE,VODAFONE LTD,6
Department of Health,St. Helens&Knowsley Hospitals NHS Trust,31/01/2021,Mobile Phones,MARSHALLS CROSS MEDICAL CENTRE,VODAFONE LTD,30
Department of Health,St. Helens&Knowsley Hospitals NHS Trust,31/01/2021,Mobile Phones,MATERNITY THEATRES EMERGENCY WEEKDAYS,VODAFONE LTD,1.5
Department of Health,St. Helens&Knowsley Hospitals NHS Trust,31/01/2021,Mobile Phones,MATERNITY THEATRES EMERGENCY WEEKDAYS,VODAFONE LTD,7.5
Department of Health,St. Helens&Knowsley Hospitals NHS Trust,31/01/2021,Mobile Phones,MEDICAL CARE GROUP MGT,VODAFONE LTD,316.16
Department of Health,St. Helens&Knowsley Hospitals NHS Trust,31/01/2021,Mobile Phones,MEDICAL CARE GROUP MGT,VODAFONE LTD,"1,580.82"
Department of Health,St. Helens&Knowsley Hospitals NHS Trust,31/01/2021,Mobile Phones,MGMT SPECIALIST MIDWIVES,VODAFONE LTD,89.46
Department of Health,St. Helens&Knowsley Hospitals NHS Trust,31/01/2021,Mobile Phones,MGMT SPECIALIST MIDWIVES,VODAFONE LTD,447.3
Department of Health,St. Helens&Knowsley Hospitals NHS Trust,31/01/2021,Mobile Phones,MICROBIOLOGY DEPT,VODAFONE LTD,46.52
Department of Health,St. Helens&Knowsley Hospitals NHS Trust,31/01/2021,Mobile Phones,MICROBIOLOGY DEPT,VODAFONE LTD,232.62
Department of Health,St. Helens&Knowsley Hospitals NHS Trust,31/01/2021,Mobile Phones,MICROBIOLOGY MED STAFF,VODAFONE LTD,12
Department of Health,St. Helens&Knowsley Hospitals NHS Trust,31/01/2021,Mobile Phones,MICROBIOLOGY MED STAFF,VODAFONE LTD,60
Department of Health,St. Helens&Knowsley Hospitals NHS Trust,31/01/2021,Mobile Phones,MMDA PROGRAMME COSTS - SHARED SERVICES,VODAFONE LTD,304.87
Department of Health,St. Helens&Knowsley Hospitals NHS Trust,31/01/2021,Mobile Phones,MMDA PROGRAMME COSTS - SHARED SERVICES,VODAFONE LTD,"1,524.33"
Department of Health,St. Helens&Knowsley Hospitals NHS Trust,31/01/2021,Mobile Phones,NEWTON INTERMEDIATE CARE SERVICE,VODAFONE LTD,23.09
Department of Health,St. Helens&Knowsley Hospitals NHS Trust,31/01/2021,Mobile Phones,NEWTON INTERMEDIATE CARE SERVICE,VODAFONE LTD,115.47
Department of Health,St. Helens&Knowsley Hospitals NHS Trust,31/01/2021,Mobile Phones,NORTH WEST HEE,VODAFONE LTD,107.53
Department of Health,St. Helens&Knowsley Hospitals NHS Trust,31/01/2021,Mobile Phones,NORTH WEST HEE,VODAFONE LTD,537.63
Department of Health,St. Helens&Knowsley Hospitals NHS Trust,31/01/2021,Mobile Phones,NURSING ADMINISTRATION,VODAFONE LTD,150.82
Department of Health,St. Helens&Knowsley Hospitals NHS Trust,31/01/2021,Mobile Phones,NURSING ADMINISTRATION,VODAFONE LTD,754.12
Department of Health,St. Helens&Knowsley Hospitals NHS Trust,31/01/2021,Mobile Phones,NURSING DIRECTOR ADMIN STAFF,VODAFONE LTD,6
Department of Health,St. Helens&Knowsley Hospitals NHS Trust,31/01/2021,Mobile Phones,NURSING DIRECTOR ADMIN STAFF,VODAFONE LTD,30
Department of Health,St. Helens&Knowsley Hospitals NHS Trust,31/01/2021,Mobile Phones,OBS + GYNAE MEDICAL STAFF,VODAFONE LTD,18
Department of Health,St. Helens&Knowsley Hospitals NHS Trust,31/01/2021,Mobile Phones,OBS + GYNAE MEDICAL STAFF,VODAFONE LTD,90
Department of Health,St. Helens&Knowsley Hospitals NHS Trust,31/01/2021,Mobile Phones,OCCUPATIONAL HEALTH MED,VODAFONE LTD,6
Department of Health,St. Helens&Knowsley Hospitals NHS Trust,31/01/2021,Mobile Phones,OCCUPATIONAL HEALTH MED,VODAFONE LTD,30
Department of Health,St. Helens&Knowsley Hospitals NHS Trust,31/01/2021,Mobile Phones,OCCUPATIONAL HEALTH NURS,VODAFONE LTD,18
Department of Health,St. Helens&Knowsley Hospitals NHS Trust,31/01/2021,Mobile Phones,OCCUPATIONAL HEALTH NURS,VODAFONE LTD,90
Department of Health,St. Helens&Knowsley Hospitals NHS Trust,31/01/2021,Mobile Phones,ORGANISATIONAL L And D,VODAFONE LTD,1.5
Department of Health,St. Helens&Knowsley Hospitals NHS Trust,31/01/2021,Mobile Phones,ORGANISATIONAL L And D,VODAFONE LTD,7.5
Department of Health,St. Helens&Knowsley Hospitals NHS Trust,31/01/2021,Mobile Phones,ORTHOPAEDIC MEDICAL STAFF,VODAFONE LTD,19.5
Department of Health,St. Helens&Knowsley Hospitals NHS Trust,31/01/2021,Mobile Phones,ORTHOPAEDIC MEDICAL STAFF,VODAFONE LTD,97.5
Department of Health,St. Helens&Knowsley Hospitals NHS Trust,31/01/2021,Mobile Phones,OUTPATIENTS ST HELENS,VODAFONE LTD,6
Department of Health,St. Helens&Knowsley Hospitals NHS Trust,31/01/2021,Mobile Phones,OUTPATIENTS ST HELENS,VODAFONE LTD,30
Department of Health,St. Helens&Knowsley Hospitals NHS Trust,31/01/2021,Mobile Phones,PAED SPECIALIST NURSES,VODAFONE LTD,16.52
Department of Health,St. Helens&Knowsley Hospitals NHS Trust,31/01/2021,Mobile Phones,PAED SPECIALIST NURSES,VODAFONE LTD,82.62
Department of Health,St. Helens&Knowsley Hospitals NHS Trust,31/01/2021,Mobile Phones,PAEDIATRIC MEDICAL STAFF,VODAFONE LTD,1.5
Department of Health,St. Helens&Knowsley Hospitals NHS Trust,31/01/2021,Mobile Phones,PAEDIATRIC MEDICAL STAFF,VODAFONE LTD,7.5
Department of Health,St. Helens&Knowsley Hospitals NHS Trust,31/01/2021,Mobile Phones,PAEDIATRICS WARD CLERKS,VODAFONE LTD,1.5
Department of Health,St. Helens&Knowsley Hospitals NHS Trust,31/01/2021,Mobile Phones,PAEDIATRICS WARD CLERKS,VODAFONE LTD,7.5
Department of Health,St. Helens&Knowsley Hospitals NHS Trust,31/01/2021,Mobile Phones,PALLIATIVE CARE WHISTON,VODAFONE LTD,18.04
Department of Health,St. Helens&Knowsley Hospitals NHS Trust,31/01/2021,Mobile Phones,PALLIATIVE CARE WHISTON,VODAFONE LTD,90.21
Department of Health,St. Helens&Knowsley Hospitals NHS Trust,31/01/2021,Mobile Phones,PATHOLOGY GENERAL,VODAFONE LTD,92.03
Department of Health,St. Helens&Knowsley Hospitals NHS Trust,31/01/2021,Mobile Phones,PATHOLOGY GENERAL,VODAFONE LTD,460.17
Department of Health,St. Helens&Knowsley Hospitals NHS Trust,31/01/2021,Mobile Phones,PATIENT ACCESS MGMT,VODAFONE LTD,18.25
Department of Health,St. Helens&Knowsley Hospitals NHS Trust,31/01/2021,Mobile Phones,PATIENT ACCESS MGMT,VODAFONE LTD,91.25
Department of Health,St. Helens&Knowsley Hospitals NHS Trust,31/01/2021,Mobile Phones,PAYING PATIENTS,VODAFONE LTD,18
Department of Health,St. Helens&Knowsley Hospitals NHS Trust,31/01/2021,Mobile Phones,PAYING PATIENTS,VODAFONE LTD,90
Department of Health,St. Helens&Knowsley Hospitals NHS Trust,31/01/2021,Mobile Phones,PAYROLL SERVICES,VODAFONE LTD,42
Department of Health,St. Helens&Knowsley Hospitals NHS Trust,31/01/2021,Mobile Phones,PAYROLL SERVICES,VODAFONE LTD,210
Department of Health,St. Helens&Knowsley Hospitals NHS Trust,31/01/2021,Mobile Phones,PFI DESIGN + CONSTRUCTION,VODAFONE LTD,42
Department of Health,St. Helens&Knowsley Hospitals NHS Trust,31/01/2021,Mobile Phones,PFI DESIGN + CONSTRUCTION,VODAFONE LTD,210
Department of Health,St. Helens&Knowsley Hospitals NHS Trust,31/01/2021,Mobile Phones,PHARMACY GENERAL,VODAFONE LTD,104.33
Department of Health,St. Helens&Knowsley Hospitals NHS Trust,31/01/2021,Mobile Phones,PHARMACY GENERAL,VODAFONE LTD,521.63
Department of Health,St. Helens&Knowsley Hospitals NHS Trust,31/01/2021,Mobile Phones,PROJECTS And TRAINING,VODAFONE LTD,32.1
Department of Health,St. Helens&Knowsley Hospitals NHS Trust,31/01/2021,Mobile Phones,PROJECTS And TRAINING,VODAFONE LTD,160.5
Department of Health,St. Helens&Knowsley Hospitals NHS Trust,31/01/2021,Mobile Phones,RADIOGRAPHY WHISTON,VODAFONE LTD,12.06
Department of Health,St. Helens&Knowsley Hospitals NHS Trust,31/01/2021,Mobile Phones,RADIOGRAPHY WHISTON,VODAFONE LTD,60.3
Department of Health,St. Helens&Knowsley Hospitals NHS Trust,31/01/2021,Mobile Phones,RADIOLOGY MEDICAL STAFF,VODAFONE LTD,12
Department of Health,St. Helens&Knowsley Hospitals NHS Trust,31/01/2021,Mobile Phones,RADIOLOGY MEDICAL STAFF,VODAFONE LTD,60
Department of Health,St. Helens&Knowsley Hospitals NHS Trust,31/01/2021,Mobile Phones,RD AND I,VODAFONE LTD,25.6
Department of Health,St. Helens&Knowsley Hospitals NHS Trust,31/01/2021,Mobile Phones,RD AND I,VODAFONE LTD,128.01
Department of Health,St. Helens&Knowsley Hospitals NHS Trust,31/01/2021,Mobile Phones,REABLEMENT TEAM,VODAFONE LTD,24
Department of Health,St. Helens&Knowsley Hospitals NHS Trust,31/01/2021,Mobile Phones,REABLEMENT TEAM,VODAFONE LTD,120
Department of Health,St. Helens&Knowsley Hospitals NHS Trust,31/01/2021,Mobile Phones,REGIONAL CANCER TRANSFORMATION,VODAFONE LTD,12
Department of Health,St. Helens&Knowsley Hospitals NHS Trust,31/01/2021,Mobile Phones,REGIONAL CANCER TRANSFORMATION,VODAFONE LTD,60
Department of Health,St. Helens&Knowsley Hospitals NHS Trust,31/01/2021,Mobile Phones,RESPIRATORY NURSING,VODAFONE LTD,18
Department of Health,St. Helens&Knowsley Hospitals NHS Trust,31/01/2021,Mobile Phones,RESPIRATORY NURSING,VODAFONE LTD,90
Department of Health,St. Helens&Knowsley Hospitals NHS Trust,31/01/2021,Mobile Phones,RESPIRATORY SNR MEDICAL,VODAFONE LTD,36
Department of Health,St. Helens&Knowsley Hospitals NHS Trust,31/01/2021,Mobile Phones,RESPIRATORY SNR MEDICAL,VODAFONE LTD,180
Department of Health,St. Helens&Knowsley Hospitals NHS Trust,31/01/2021,Mobile Phones,RESUSCITATION TRAINING,VODAFONE LTD,9
Department of Health,St. Helens&Knowsley Hospitals NHS Trust,31/01/2021,Mobile Phones,RESUSCITATION TRAINING,VODAFONE LTD,45
Department of Health,St. Helens&Knowsley Hospitals NHS Trust,31/01/2021,Mobile Phones,SAFEGUARDING,VODAFONE LTD,16.9
Department of Health,St. Helens&Knowsley Hospitals NHS Trust,31/01/2021,Mobile Phones,SAFEGUARDING,VODAFONE LTD,84.52
Department of Health,St. Helens&Knowsley Hospitals NHS Trust,31/01/2021,Mobile Phones,SANDERSON SUITE GENERAL SURGERY,VODAFONE LTD,12
Department of Health,St. Helens&Knowsley Hospitals NHS Trust,31/01/2021,Mobile Phones,SANDERSON SUITE GENERAL SURGERY,VODAFONE LTD,60
Department of Health,St. Helens&Knowsley Hospitals NHS Trust,31/01/2021,Mobile Phones,SEDDON SUITE TRAUMA REHAB UNIT,VODAFONE LTD,1.5
Department of Health,St. Helens&Knowsley Hospitals NHS Trust,31/01/2021,Mobile Phones,SEDDON SUITE TRAUMA REHAB UNIT,VODAFONE LTD,7.5
Department of Health,St. Helens&Knowsley Hospitals NHS Trust,31/01/2021,Mobile Phones,SEPSIS,VODAFONE LTD,12
Department of Health,St. Helens&Knowsley Hospitals NHS Trust,31/01/2021,Mobile Phones,SEPSIS,VODAFONE LTD,60
Department of Health,St. Helens&Knowsley Hospitals NHS Trust,31/01/2021,Mobile Phones,SERV INCR 4 TEACHING-SIFT,VODAFONE LTD,30.06
Department of Health,St. Helens&Knowsley Hospitals NHS Trust,31/01/2021,Mobile Phones,SERV INCR 4 TEACHING-SIFT,VODAFONE LTD,150.31
Department of Health,St. Helens&Knowsley Hospitals NHS Trust,31/01/2021,Mobile Phones,SERVICE DELIVERY INFRASTRUCTURE,VODAFONE LTD,18
Department of Health,St. Helens&Knowsley Hospitals NHS Trust,31/01/2021,Mobile Phones,SERVICE DELIVERY INFRASTRUCTURE,VODAFONE LTD,90
Department of Health,St. Helens&Knowsley Hospitals NHS Trust,31/01/2021,Mobile Phones,SERVICE DELIVERY OPERATIONS,VODAFONE LTD,6
Department of Health,St. Helens&Knowsley Hospitals NHS Trust,31/01/2021,Mobile Phones,SERVICE DELIVERY OPERATIONS,VODAFONE LTD,30
Department of Health,St. Helens&Knowsley Hospitals NHS Trust,31/01/2021,Mobile Phones,SEXUAL HEALTH,VODAFONE LTD,108.79
Department of Health,St. Helens&Knowsley Hospitals NHS Trust,31/01/2021,Mobile Phones,SEXUAL HEALTH,VODAFONE LTD,543.95
Department of Health,St. Helens&Knowsley Hospitals NHS Trust,31/01/2021,Mobile Phones,SHARED CARE RECORD - ST HELENS HEALTH ECONOMY,VODAFONE LTD,18
Department of Health,St. Helens&Knowsley Hospitals NHS Trust,31/01/2021,Mobile Phones,SHARED CARE RECORD - ST HELENS HEALTH ECONOMY,VODAFONE LTD,90
Department of Health,St. Helens&Knowsley Hospitals NHS Trust,31/01/2021,Mobile Phones,SOHT PHLEBOTOMY,VODAFONE LTD,28.41
Department of Health,St. Helens&Knowsley Hospitals NHS Trust,31/01/2021,Mobile Phones,SOHT PHLEBOTOMY,VODAFONE LTD,142.07
Department of Health,St. Helens&Knowsley Hospitals NHS Trust,31/01/2021,Mobile Phones,ST HELENS CONTACT CARE IC THERAPY TEAM,VODAFONE LTD,1.5
Department of Health,St. Helens&Knowsley Hospitals NHS Trust,31/01/2021,Mobile Phones,ST HELENS CONTACT CARE IC THERAPY TEAM,VODAFONE LTD,7.5
Department of Health,St. Helens&Knowsley Hospitals NHS Trust,31/01/2021,Mobile Phones,ST HELENS CONTACT CARES REABLEMENT TEAM,VODAFONE LTD,4.85
Department of Health,St. Helens&Knowsley Hospitals NHS Trust,31/01/2021,Mobile Phones,ST HELENS CONTACT CARES REABLEMENT TEAM,VODAFONE LTD,24.25
Department of Health,St. Helens&Knowsley Hospitals NHS Trust,31/01/2021,Mobile Phones,ST HELENS REABLEMENT,VODAFONE LTD,3
Department of Health,St. Helens&Knowsley Hospitals NHS Trust,31/01/2021,Mobile Phones,ST HELENS REABLEMENT,VODAFONE LTD,15
Department of Health,St. Helens&Knowsley Hospitals NHS Trust,31/01/2021,Mobile Phones,STROKE MEDICAL STAFFING,VODAFONE LTD,1.5
Department of Health,St. Helens&Knowsley Hospitals NHS Trust,31/01/2021,Mobile Phones,STROKE MEDICAL STAFFING,VODAFONE LTD,7.5
Department of Health,St. Helens&Knowsley Hospitals NHS Trust,31/01/2021,Mobile Phones,SURGICAL CARE MANAGEMENT,VODAFONE LTD,94.8
Department of Health,St. Helens&Knowsley Hospitals NHS Trust,31/01/2021,Mobile Phones,SURGICAL CARE MANAGEMENT,VODAFONE LTD,474
Department of Health,St. Helens&Knowsley Hospitals NHS Trust,31/01/2021,Mobile Phones,SURGICAL CARE SECS,VODAFONE LTD,6
Department of Health,St. Helens&Knowsley Hospitals NHS Trust,31/01/2021,Mobile Phones,SURGICAL CARE SECS,VODAFONE LTD,30
Department of Health,St. Helens&Knowsley Hospitals NHS Trust,31/01/2021,Mobile Phones,THEATRES ANAESTHETICS WH,VODAFONE LTD,1.5
Department of Health,St. Helens&Knowsley Hospitals NHS Trust,31/01/2021,Mobile Phones,THEATRES ANAESTHETICS WH,VODAFONE LTD,7.5
Department of Health,St. Helens&Knowsley Hospitals NHS Trust,31/01/2021,Mobile Phones,THEATRES BURNS + PLASTICS,VODAFONE LTD,7.5
Department of Health,St. Helens&Knowsley Hospitals NHS Trust,31/01/2021,Mobile Phones,THEATRES BURNS + PLASTICS,VODAFONE LTD,37.5
Department of Health,St. Helens&Knowsley Hospitals NHS Trust,31/01/2021,Mobile Phones,THEATRES DIRECTORATE MGT,VODAFONE LTD,67.5
Department of Health,St. Helens&Knowsley Hospitals NHS Trust,31/01/2021,Mobile Phones,THEATRES DIRECTORATE MGT,VODAFONE LTD,337.5
Department of Health,St. Helens&Knowsley Hospitals NHS Trust,31/01/2021,Mobile Phones,THEATRES GEN SURGERY/UROL,VODAFONE LTD,3
Department of Health,St. Helens&Knowsley Hospitals NHS Trust,31/01/2021,Mobile Phones,THEATRES GEN SURGERY/UROL,VODAFONE LTD,15
Department of Health,St. Helens&Knowsley Hospitals NHS Trust,31/01/2021,Mobile Phones,THEATRES MAIN ST HELEN'S,VODAFONE LTD,9
Department of Health,St. Helens&Knowsley Hospitals NHS Trust,31/01/2021,Mobile Phones,THEATRES MAIN ST HELEN'S,VODAFONE LTD,45
Department of Health,St. Helens&Knowsley Hospitals NHS Trust,31/01/2021,Mobile Phones,THEATRES MATERNITY WH,VODAFONE LTD,3
Department of Health,St. Helens&Knowsley Hospitals NHS Trust,31/01/2021,Mobile Phones,THEATRES MATERNITY WH,VODAFONE LTD,15
Department of Health,St. Helens&Knowsley Hospitals NHS Trust,31/01/2021,Mobile Phones,THEATRES MEDICAL STAFF,VODAFONE LTD,7.5
Department of Health,St. Helens&Knowsley Hospitals NHS Trust,31/01/2021,Mobile Phones,THEATRES MEDICAL STAFF,VODAFONE LTD,37.5
Department of Health,St. Helens&Knowsley Hospitals NHS Trust,31/01/2021,Mobile Phones,THEATRES TRAU ORTHOPAEDIC,VODAFONE LTD,1.5
Department of Health,St. Helens&Knowsley Hospitals NHS Trust,31/01/2021,Mobile Phones,THEATRES TRAU ORTHOPAEDIC,VODAFONE LTD,7.5
Department of Health,St. Helens&Knowsley Hospitals NHS Trust,31/01/2021,Mobile Phones,THERAPY MANAGEMENT & ADMIN.,VODAFONE LTD,106.77
Department of Health,St. Helens&Knowsley Hospitals NHS Trust,31/01/2021,Mobile Phones,THERAPY MANAGEMENT & ADMIN.,VODAFONE LTD,533.87
Department of Health,St. Helens&Knowsley Hospitals NHS Trust,31/01/2021,Mobile Phones,TRAUMA ORTHOPAEDICS,VODAFONE LTD,6
Department of Health,St. Helens&Knowsley Hospitals NHS Trust,31/01/2021,Mobile Phones,TRAUMA ORTHOPAEDICS,VODAFONE LTD,30
Department of Health,St. Helens&Knowsley Hospitals NHS Trust,31/01/2021,Mobile Phones,TRUST RECHARGES,VODAFONE LTD,84
Department of Health,St. Helens&Knowsley Hospitals NHS Trust,31/01/2021,Mobile Phones,TRUST RECHARGES,VODAFONE LTD,420
Department of Health,St. Helens&Knowsley Hospitals NHS Trust,31/01/2021,Mobile Phones,UROLOGY MEDICAL STAFF,VODAFONE LTD,55.56
Department of Health,St. Helens&Knowsley Hospitals NHS Trust,31/01/2021,Mobile Phones,UROLOGY MEDICAL STAFF,VODAFONE LTD,277.8
Department of Health,St. Helens&Knowsley Hospitals NHS Trust,31/01/2021,Mobile Phones,UROLOGY SUITE,VODAFONE LTD,13.5
Department of Health,St. Helens&Knowsley Hospitals NHS Trust,31/01/2021,Mobile Phones,UROLOGY SUITE,VODAFONE LTD,67.5
Department of Health,St. Helens&Knowsley Hospitals NHS Trust,31/01/2021,Mobile Phones,WARD 1A WINTER,VODAFONE LTD,13.5
Department of Health,St. Helens&Knowsley Hospitals NHS Trust,31/01/2021,Mobile Phones,WARD 1A WINTER,VODAFONE LTD,67.5
Department of Health,St. Helens&Knowsley Hospitals NHS Trust,31/01/2021,Mobile Phones,WARD 1B ACUTE MEDICAL UNIT,VODAFONE LTD,19.33
Department of Health,St. Helens&Knowsley Hospitals NHS Trust,31/01/2021,Mobile Phones,WARD 1B ACUTE MEDICAL UNIT,VODAFONE LTD,96.67
Department of Health,St. Helens&Knowsley Hospitals NHS Trust,31/01/2021,Mobile Phones,WARD 1C ACUTE MEDICAL UNIT,VODAFONE LTD,19.33
Department of Health,St. Helens&Knowsley Hospitals NHS Trust,31/01/2021,Mobile Phones,WARD 1C ACUTE MEDICAL UNIT,VODAFONE LTD,96.67
Department of Health,St. Helens&Knowsley Hospitals NHS Trust,31/01/2021,Mobile Phones,WARD 2A HAEMATOLOGY,VODAFONE LTD,6.47
Department of Health,St. Helens&Knowsley Hospitals NHS Trust,31/01/2021,Mobile Phones,WARD 2A HAEMATOLOGY,VODAFONE LTD,32.33
Department of Health,St. Helens&Knowsley Hospitals NHS Trust,31/01/2021,Mobile Phones,WARD 2B RESPIRATORY,VODAFONE LTD,6.33
Department of Health,St. Helens&Knowsley Hospitals NHS Trust,31/01/2021,Mobile Phones,WARD 2B RESPIRATORY,VODAFONE LTD,31.67
Department of Health,St. Helens&Knowsley Hospitals NHS Trust,31/01/2021,Mobile Phones,WARD 2C RESPIRATORY,VODAFONE LTD,6.33
Department of Health,St. Helens&Knowsley Hospitals NHS Trust,31/01/2021,Mobile Phones,WARD 2C RESPIRATORY,VODAFONE LTD,31.67
Department of Health,St. Helens&Knowsley Hospitals NHS Trust,31/01/2021,Mobile Phones,WARD 3A PLASTICS,VODAFONE LTD,19.54
Department of Health,St. Helens&Knowsley Hospitals NHS Trust,31/01/2021,Mobile Phones,WARD 3A PLASTICS,VODAFONE LTD,97.7
Department of Health,St. Helens&Knowsley Hospitals NHS Trust,31/01/2021,Mobile Phones,WARD 3ALPHA ORTHOPAEDICS,VODAFONE LTD,6.33
Department of Health,St. Helens&Knowsley Hospitals NHS Trust,31/01/2021,Mobile Phones,WARD 3ALPHA ORTHOPAEDICS,VODAFONE LTD,31.67
Department of Health,St. Helens&Knowsley Hospitals NHS Trust,31/01/2021,Mobile Phones,WARD 3B ORTHOPAEDICS,VODAFONE LTD,6.33
Department of Health,St. Helens&Knowsley Hospitals NHS Trust,31/01/2021,Mobile Phones,WARD 3B ORTHOPAEDICS,VODAFONE LTD,31.67
Department of Health,St. Helens&Knowsley Hospitals NHS Trust,31/01/2021,Mobile Phones,WARD 3D GASTROENTEROLOGY,VODAFONE LTD,6.47
Department of Health,St. Helens&Knowsley Hospitals NHS Trust,31/01/2021,Mobile Phones,WARD 3D GASTROENTEROLOGY,VODAFONE LTD,32.33
Department of Health,St. Helens&Knowsley Hospitals NHS Trust,31/01/2021,Mobile Phones,WARD 3E GYNAECOLOGY,VODAFONE LTD,6
Department of Health,St. Helens&Knowsley Hospitals NHS Trust,31/01/2021,Mobile Phones,WARD 3E GYNAECOLOGY,VODAFONE LTD,30
Department of Health,St. Helens&Knowsley Hospitals NHS Trust,31/01/2021,Mobile Phones,WARD 3F PAEDIATRICS,VODAFONE LTD,17.42
Department of Health,St. Helens&Knowsley Hospitals NHS Trust,31/01/2021,Mobile Phones,WARD 3F PAEDIATRICS,VODAFONE LTD,87.12
Department of Health,St. Helens&Knowsley Hospitals NHS Trust,31/01/2021,Mobile Phones,WARD 4D BURNS,VODAFONE LTD,4.8
Department of Health,St. Helens&Knowsley Hospitals NHS Trust,31/01/2021,Mobile Phones,WARD 4D BURNS,VODAFONE LTD,24
Department of Health,St. Helens&Knowsley Hospitals NHS Trust,31/01/2021,Mobile Phones,WARD 5B CARE OF THE ELDERLY,VODAFONE LTD,7.33
Department of Health,St. Helens&Knowsley Hospitals NHS Trust,31/01/2021,Mobile Phones,WARD 5B CARE OF THE ELDERLY,VODAFONE LTD,36.67
Department of Health,St. Helens&Knowsley Hospitals NHS Trust,31/01/2021,Mobile Phones,WARD 5C ACUTE STROKE UNIT (HASU),VODAFONE LTD,25.5
Department of Health,St. Helens&Knowsley Hospitals NHS Trust,31/01/2021,Mobile Phones,WARD 5C ACUTE STROKE UNIT (HASU),VODAFONE LTD,127.5
Department of Health,St. Helens&Knowsley Hospitals NHS Trust,31/01/2021,Mobile Phones,WEST MIDLANDS HEE,VODAFONE LTD,42.05
Department of Health,St. Helens&Knowsley Hospitals NHS Trust,31/01/2021,Mobile Phones,WEST MIDLANDS HEE,VODAFONE LTD,210.24
Department of Health,St. Helens&Knowsley Hospitals NHS Trust,31/01/2021,Mobile Phones,WHIS THEATRES EMERG WKDAY NGTS WKEND,VODAFONE LTD,6
Department of Health,St. Helens&Knowsley Hospitals NHS Trust,31/01/2021,Mobile Phones,WHIS THEATRES EMERG WKDAY NGTS WKEND,VODAFONE LTD,30
Department of Health,St. Helens&Knowsley Hospitals NHS Trust,31/01/2021,Mobile Phones,WHISTON EQUIPMENT POOL,VODAFONE LTD,6.05
Department of Health,St. Helens&Knowsley Hospitals NHS Trust,31/01/2021,Mobile Phones,WHISTON EQUIPMENT POOL,VODAFONE LTD,30.25
Department of Health,St. Helens&Knowsley Hospitals NHS Trust,31/01/2021,Mobile Phones,WORKFORCE INTELLIGENCE,VODAFONE LTD,18.02
Department of Health,St. Helens&Knowsley Hospitals NHS Trust,31/01/2021,Mobile Phones,WORKFORCE INTELLIGENCE,VODAFONE LTD,90.12
Department of Health,St. Helens&Knowsley Hospitals NHS Trust,31/01/2021,NHS Local Debtors Adj,Balance Sheet,VODAFONE LTD,326.99
Department of Health,St. Helens&Knowsley Hospitals NHS Trust,31/01/2021,NHS Local Debtors Adj,Balance Sheet,VODAFONE LTD,"1,634.93"
Department of Health,St. Helens&Knowsley Hospitals NHS Trust,31/01/2021,Office Equipment,SERVICE DELIVERY OPERATIONS,CANON UK LTD,"37,981.16"
Department of Health,St. Helens&Knowsley Hospitals NHS Trust,31/01/2021,PROFESSIONAL INDEMNITY,EAST MIDLANDS HEE,MDDUS,"36,585.24"
Department of Health,St. Helens&Knowsley Hospitals NHS Trust,31/01/2021,Stocks Raw Materials,Balance Sheet,HEALTHCARE AT HOME LTD,"49,210.89"
Department of Health,St. Helens&Knowsley Hospitals NHS Trust,31/01/2021,Stocks Raw Materials,Balance Sheet,ALLOGA UK LTD,"37,420.26"
Department of Health,St. Helens&Knowsley Hospitals NHS Trust,31/01/2021,Stocks Raw Materials,Balance Sheet,HEALTHCARE AT HOME LTD,"83,855.49"
Department of Health,St. Helens&Knowsley Hospitals NHS Trust,31/01/2021,Stocks Raw Materials,Balance Sheet,HEALTHCARE AT HOME LTD,"79,242.46"
Department of Health,St. Helens&Knowsley Hospitals NHS Trust,31/01/2021,Stocks Raw Materials,Balance Sheet,PHOENIX HEALTHCARE DISTRIBUTION LTD,"4,140.09"
Department of Health,St. Helens&Knowsley Hospitals NHS Trust,31/01/2021,Stocks Raw Materials,Balance Sheet,PHOENIX HEALTHCARE DISTRIBUTION LTD,"21,074.72"
Department of Health,St. Helens&Knowsley Hospitals NHS Trust,31/01/2021,Stocks Raw Materials,Balance Sheet,ALLIANCE HEALTHCARE DISTRIBUTION LTD,"19,291.22"
Department of Health,St. Helens&Knowsley Hospitals NHS Trust,31/01/2021,Stocks Raw Materials,Balance Sheet,ALLIANCE HEALTHCARE DISTRIBUTION LTD,"100,173.05"
Department of Health,St. Helens&Knowsley Hospitals NHS Trust,31/01/2021,Stocks Raw Materials,Balance Sheet,AAH PHARMACEUTICALS LTD,"14,368.64"
Department of Health,St. Helens&Knowsley Hospitals NHS Trust,31/01/2021,Stocks Raw Materials,Balance Sheet,AAH PHARMACEUTICALS LTD,"73,298.78"
Department of Health,St. Helens&Knowsley Hospitals NHS Trust,31/01/2021,Stocks Raw Materials,Balance Sheet,NOVARTIS PHARMACEUTICALS UK LTD,"26,444.88"
Department of Health,St. Helens&Knowsley Hospitals NHS Trust,31/01/2021,Stocks Raw Materials,Balance Sheet,NOVARTIS PHARMACEUTICALS UK LTD,53.5
Department of Health,St. Helens&Knowsley Hospitals NHS Trust,31/01/2021,Stocks Raw Materials,Balance Sheet,NOVARTIS PHARMACEUTICALS UK LTD,"3,326.40"
Department of Health,St. Helens&Knowsley Hospitals NHS Trust,31/01/2021,Stocks Raw Materials,Balance Sheet,NOVARTIS PHARMACEUTICALS UK LTD,33.05
Department of Health,St. Helens&Knowsley Hospitals NHS Trust,31/01/2021,Stocks Raw Materials,Balance Sheet,NOVARTIS PHARMACEUTICALS UK LTD,8.98
Department of Health,St. Helens&Knowsley Hospitals NHS Trust,31/01/2021,Stocks Raw Materials,Balance Sheet,NOVARTIS PHARMACEUTICALS UK LTD,"13,462.85"
Department of Health,St. Helens&Knowsley Hospitals NHS Trust,31/01/2021,Stocks Raw Materials,Balance Sheet,NOVARTIS PHARMACEUTICALS UK LTD,27.54
Department of Health,St. Helens&Knowsley Hospitals NHS Trust,31/01/2021,Stocks Raw Materials,Balance Sheet,NOVARTIS PHARMACEUTICALS UK LTD,"7,725.26"
Department of Health,St. Helens&Knowsley Hospitals NHS Trust,31/01/2021,Stocks Raw Materials,Balance Sheet,NOVARTIS PHARMACEUTICALS UK LTD,"1,663.20"
Department of Health,St. Helens&Knowsley Hospitals NHS Trust,31/01/2021,Stocks Raw Materials,Balance Sheet,NOVARTIS PHARMACEUTICALS UK LTD,"5,241.60"
Department of Health,St. Helens&Knowsley Hospitals NHS Trust,31/01/2021,Stocks Raw Materials,Balance Sheet,NOVARTIS PHARMACEUTICALS UK LTD,"5,241.60"
Department of Health,St. Helens&Knowsley Hospitals NHS Trust,31/01/2021,Stocks Raw Materials,Balance Sheet,HEALTHCARE AT HOME LTD,"133,118.42"
Department of Health,St. Helens&Knowsley Hospitals NHS Trust,31/01/2021,Stocks Raw Materials,Balance Sheet,HEALTHCARE AT HOME LTD,"126,888.11"
Department of Health,St. Helens&Knowsley Hospitals NHS Trust,31/01/2021,Stocks Raw Materials,Balance Sheet,ALLIANCE HEALTHCARE DISTRIBUTION LTD,"14,723.10"
Department of Health,St. Helens&Knowsley Hospitals NHS Trust,31/01/2021,Stocks Raw Materials,Balance Sheet,ALLIANCE HEALTHCARE DISTRIBUTION LTD,"77,343.28"
Department of Health,St. Helens&Knowsley Hospitals NHS Trust,31/01/2021,Stocks Raw Materials,Balance Sheet,ALLIANCE HEALTHCARE DISTRIBUTION LTD,"15,209.55"
Department of Health,St. Helens&Knowsley Hospitals NHS Trust,31/01/2021,Stocks Raw Materials,Balance Sheet,ALLIANCE HEALTHCARE DISTRIBUTION LTD,"78,801.11"
Department of Health,St. Helens&Knowsley Hospitals NHS Trust,31/01/2021,Stocks Raw Materials,Balance Sheet,AAH PHARMACEUTICALS LTD,"15,085.41"
Department of Health,St. Helens&Knowsley Hospitals NHS Trust,31/01/2021,Stocks Raw Materials,Balance Sheet,AAH PHARMACEUTICALS LTD,"76,594.09"
Department of Health,St. Helens&Knowsley Hospitals NHS Trust,31/01/2021,Stocks Raw Materials,Balance Sheet,ALLOGA UK LTD,"46,206.79"
Department of Health,St. Helens&Knowsley Hospitals NHS Trust,31/01/2021,Stocks Raw Materials,Balance Sheet,ALLOGA UK LTD,"43,077.19"
Department of Health,St. Helens&Knowsley Hospitals NHS Trust,31/01/2021,VARIOUS,VARIOUS,SUPPLY CHAIN COORDINATION LIMITED,"209,950.75"
Department of Health,St. Helens&Knowsley Hospitals NHS Trust,31/01/2021,VARIOUS,VARIOUS,SUPPLY CHAIN COORDINATION LIMITED,"104,077.48"
Department of Health,St. Helens&Knowsley Hospitals NHS Trust,31/01/2021,VARIOUS,VARIOUS,SUPPLY CHAIN COORDINATION LIMITED,"128,331.59"
Department of Health,St. Helens&Knowsley Hospitals NHS Trust,31/01/2021,VARIOUS,VARIOUS,SUPPLY CHAIN COORDINATION LIMITED,"153,925.40"
Department of Health,St. Helens&Knowsley Hospitals NHS Trust,31/01/2021,Water,RATES/WATER ST HELENS,WATER PLUS,"78,532.64"
Department of Health,St. Helens&Knowsley Hospitals NHS Trust,31/01/2021,Water,RATES/WATER WHISTON,WATER PLUS,"26,022.37"
